bitfinex/quotes_BTCUSD_20250218
["timestamp","ask_amount","ask_price","bid_price","bid_amount"]
[1739856422083,0.0004016,95983.0,95982.0,0.15109577]
[1739856425454,0.0004016,95983.0,95982.0,0.15005401]
[1739856425850,0.0004016,95983.0,95982.0,0.15109567]
[1739856426108,0.0004016,95983.0,95982.0,0.15005401]
[1739856426492,0.0004016,95983.0,95982.0,0.15109567]
[1739856426869,0.0004016,95983.0,95982.0,0.15005401]
[1739856428523,0.0004016,95983.0,95982.0,0.12705401]
[1739856428958,0.0004016,95983.0,95982.0,0.15005401]
[1739856429672,0.0004016,95983.0,95982.0,0.11450365]
[1739856429894,0.0805,95984.0,95982.0,0.11450365]
[1739856430093,5.965e-05,95984.0,95982.0,0.11450365]
[1739856430659,5.965e-05,95984.0,95982.0,0.10250365]
[1739856430991,5.965e-05,95984.0,95982.0,0.11350365]
[1739856431347,5.965e-05,95984.0,95983.0,0.06523036]
[1739856431552,5.965e-05,95984.0,95983.0,0.16773401]
[1739856431774,5.965e-05,95984.0,95983.0,0.19073401]
[1739856432213,5.965e-05,95984.0,95983.0,0.19177576]
[1739856432642,5.965e-05,95984.0,95983.0,0.19677576]
[1739856433424,5.965e-05,95984.0,95983.0,0.20177576]
[1739856434394,5.965e-05,95984.0,95983.0,0.20073401]
[1739856435946,5.965e-05,95984.0,95983.0,0.20177574]
[1739856436159,5.965e-05,95984.0,95983.0,0.28297574]
[1739856436360,5.965e-05,95984.0,95983.0,0.28193401]
[1739856437410,5.965e-05,95984.0,95983.0,0.27193401]
[1739856437608,5.965e-05,95984.0,95983.0,0.27893401]
[1739856437811,5.965e-05,95984.0,95983.0,0.28593401]
[1739856438017,5.965e-05,95984.0,95983.0,0.27893401]
[1739856438425,5.965e-05,95984.0,95983.0,0.28593401]
[1739856438625,5.965e-05,95984.0,95983.0,0.27893401]
[1739856438854,5.965e-05,95984.0,95983.0,0.32723401]
[1739856439426,5.965e-05,95984.0,95983.0,0.33423401]
[1739856439879,5.965e-05,95984.0,95983.0,0.32723401]
[1739856440347,5.965e-05,95984.0,95983.0,0.88603401]
[1739856440619,5.965e-05,95984.0,95983.0,0.87903401]
[1739856440794,5.965e-05,95984.0,95983.0,0.89303401]
[1739856441144,5.965e-05,95984.0,95983.0,0.88603401]
[1739856441516,5.965e-05,95984.0,95983.0,0.89303401]
[1739856441699,5.965e-05,95984.0,95983.0,0.90603401]
[1739856442584,5.965e-05,95984.0,95983.0,0.91303401]
[1739856442985,5.965e-05,95984.0,95983.0,0.90603401]
[1739856443362,5.965e-05,95984.0,95983.0,0.91303401]
[1739856443605,5.965e-05,95984.0,95983.0,0.90603401]
[1739856444226,5.965e-05,95984.0,95983.0,0.89903401]
[1739856444430,5.965e-05,95984.0,95983.0,0.90603401]
[1739856444624,6.5e-07,95984.0,95983.0,0.91303401]
[1739856444761,6.5e-07,95984.0,95983.0,0.91320431]
[1739856446786,6.5e-07,95984.0,95983.0,1.06948131]
[1739856449527,6.5e-07,95984.0,95983.0,1.21948131]
[1739856450087,4.5e-07,95997.0,95996.0,0.401956]
[1739856450292,4.5e-07,95997.0,95996.0,0.6759633]
[1739856450497,4.5e-07,95997.0,95996.0,0.6959633]
[1739856450705,4.5e-07,95997.0,95996.0,1.2347633]
[1739856451082,8.5e-07,96000.0,95999.0,0.196251]
[1739856451288,8.5e-07,96000.0,95999.0,0.58768099]
[1739856451508,8.5e-07,96000.0,95999.0,0.58663975]
[1739856453418,8.5e-07,96000.0,95999.0,0.59363975]
[1739856453826,8.5e-07,96000.0,95999.0,0.60063975]
[1739856455120,8.5e-07,96000.0,95999.0,1.13943975]
[1739856455907,8.5e-07,96000.0,95999.0,1.13243975]
[1739856456102,8.5e-07,96000.0,95999.0,1.09943975]
[1739856456466,8.5e-07,96000.0,95999.0,1.09243975]
[1739856456897,8.5e-07,96000.0,95999.0,1.09943975]
[1739856457100,8.5e-07,96000.0,95999.0,1.11243975]
[1739856457503,8.5e-07,96000.0,95999.0,1.09943975]
[1739856457703,8.5e-07,96000.0,95999.0,1.09243975]
[1739856457860,8.5e-07,96000.0,95999.0,1.11243975]
[1739856458060,8.5e-07,96000.0,95999.0,1.14027173]
[1739856458331,8.5e-07,96000.0,95999.0,1.12027173]
[1739856459483,8.5e-07,96000.0,95999.0,1.13327173]
[1739856460271,8.5e-07,96000.0,95999.0,1.14027173]
[1739856460471,8.5e-07,96000.0,95999.0,1.13327173]
[1739856460673,8.5e-07,96000.0,95999.0,1.14027173]
[1739856464282,8.5e-07,96000.0,95999.0,1.12027173]
[1739856464501,8.5e-07,96000.0,95999.0,1.03957173]
[1739856465067,8.5e-07,96000.0,95999.0,1.01873975]
[1739856465701,8.5e-07,96000.0,95999.0,1.01173975]
[1739856465908,8.5e-07,96000.0,95999.0,1.01873975]
[1739856466317,8.5e-07,96000.0,95999.0,1.01173975]
[1739856466749,8.5e-07,96000.0,95999.0,1.01873975]
[1739856466877,8.5e-07,96000.0,95999.0,1.01173975]
[1739856467083,8.5e-07,96000.0,95999.0,1.00473975]
[1739856467491,8.5e-07,96000.0,95999.0,1.01873975]
[1739856467750,8.5e-07,96000.0,95999.0,1.01173975]
[1739856468055,8.5e-07,96000.0,95999.0,1.01873975]
[1739856468203,8.5e-07,96000.0,95999.0,1.01173975]
[1739856468819,8.5e-07,96000.0,95999.0,1.00473975]
[1739856469032,8.5e-07,96000.0,95999.0,1.01173975]
[1739856469208,8.5e-07,96000.0,95999.0,1.03173975]
[1739856469439,8.5e-07,96000.0,95999.0,1.02473975]
[1739856469846,8.5e-07,96000.0,95999.0,1.03873975]
[1739856470005,8.5e-07,96000.0,95999.0,1.01173975]
[1739856470913,8.5e-07,96000.0,95999.0,1.01873975]
[1739856472058,8.5e-07,96000.0,95999.0,1.01173975]
[1739856472757,8.5e-07,96000.0,95999.0,1.01873975]
[1739856474743,0.11951287,96020.0,96016.0,0.023]
[1739856474945,0.07535257,96025.0,96017.0,0.14125665]
[1739856476096,0.07548475,96025.0,96018.0,0.023]
[1739856476283,0.07548475,96025.0,96020.0,0.023]
[1739856476486,0.07548475,96025.0,96021.0,0.10250365]
[1739856476689,0.07548475,96025.0,96022.0,0.02647736]
[1739856476829,0.07548475,96025.0,96023.0,0.10250365]
[1739856477757,0.0492,96024.0,96023.0,0.10250365]
[1739856477958,0.0492,96024.0,96023.0,0.10850365]
[1739856479178,0.0492,96024.0,96023.0,0.11550365]
[1739856479378,0.0492,96024.0,96023.0,0.15149925]
[1739856479650,0.20541,96024.0,96023.0,0.10950365]
[1739856479868,0.0492,96024.0,96023.0,0.10950365]
[1739856480072,0.0492,96024.0,96023.0,0.11550365]
[1739856481126,0.07548475,96025.0,96024.0,0.023]
[1739856481127,0.00013218,96025.0,96024.0,0.023]
[1739856481337,0.00013218,96025.0,96024.0,0.31348562]
[1739856482286,9.218e-05,96025.0,96024.0,0.31348562]
[1739856482484,9.218e-05,96025.0,96024.0,0.32048562]
[1739856482882,9.218e-05,96025.0,96024.0,0.31348562]
[1739856483288,9.218e-05,96025.0,96024.0,0.32748562]
[1739856483652,9.218e-05,96025.0,96024.0,0.32048562]
[1739856483985,9.218e-05,96025.0,96024.0,0.32748562]
[1739856484798,9.218e-05,96025.0,96024.0,0.32048562]
[1739856485007,9.218e-05,96025.0,96024.0,0.31348562]
[1739856485459,9.218e-05,96025.0,96024.0,0.32048562]
[1739856486141,9.218e-05,96025.0,96024.0,0.31348562]
[1739856486342,9.218e-05,96025.0,96024.0,0.32048562]
[1739856486544,9.218e-05,96025.0,96024.0,0.32748562]
[1739856487193,9.218e-05,96025.0,96024.0,0.32048562]
[1739856487408,9.218e-05,96025.0,96024.0,0.32748562]
[1739856487625,9.218e-05,96025.0,96024.0,0.32048562]
[1739856487840,9.218e-05,96025.0,96024.0,0.31348562]
[1739856488022,9.218e-05,96025.0,96024.0,0.32748562]
[1739856488875,9.218e-05,96025.0,96024.0,0.32048562]
[1739856489232,9.218e-05,96025.0,96024.0,0.16427562]
[1739856489407,9.218e-05,96025.0,96024.0,0.13250365]
[1739856489609,9.218e-05,96025.0,96024.0,0.13950365]
[1739856489807,9.218e-05,96025.0,96024.0,0.13250365]
[1739856490211,9.218e-05,96025.0,96024.0,0.13950365]
[1739856490414,9.218e-05,96025.0,96024.0,0.13250365]
[1739856490861,9.218e-05,96025.0,96024.0,0.13950365]
[1739856491060,9.218e-05,96025.0,96024.0,0.10950365]
[1739856491061,0.12439218,96025.0,96024.0,0.10950365]
[1739856491261,0.12439218,96025.0,96024.0,0.11650365]
[1739856491415,0.12439218,96025.0,96024.0,0.14377602]
[1739856491816,0.12439218,96025.0,96024.0,0.10950365]
[1739856492062,0.12439218,96025.0,96024.0,0.11650365]
[1739856493170,0.04769218,96025.0,96024.0,0.11650365]
[1739856493343,9.218e-05,96025.0,96024.0,0.11650365]
[1739856493548,9.218e-05,96025.0,96024.0,0.11667385]
[1739856493760,0.00043258,96025.0,96024.0,0.20862043]
[1739856496659,0.00043258,96025.0,96024.0,0.74742043]
[1739856497831,0.00043258,96025.0,96024.0,0.96652043]
[1739856498037,0.00043258,96025.0,96024.0,1.01922043]
[1739856498393,0.00043258,96025.0,96024.0,1.01222043]
[1739856499209,0.00043258,96025.0,96024.0,1.01922043]
[1739856499959,0.00043258,96025.0,96024.0,1.01222043]
[1739856500157,0.00043258,96025.0,96024.0,1.00522043]
[1739856500364,0.00043258,96025.0,96024.0,1.01922043]
[1739856500933,0.00043258,96025.0,96024.0,1.01222043]
[1739856501158,0.00043258,96025.0,96024.0,1.01922043]
[1739856501708,0.00043258,96025.0,96024.0,1.01222043]
[1739856502252,0.00043258,96025.0,96024.0,1.01922043]
[1739856503198,0.00043258,96025.0,96024.0,1.00522043]
[1739856503395,0.00043258,96025.0,96024.0,1.01222043]
[1739856503546,0.00043258,96025.0,96024.0,1.01922043]
[1739856504551,0.00043258,96025.0,96024.0,1.01222043]
[1739856505365,0.00043258,96025.0,96024.0,1.01922043]
[1739856506765,0.00043258,96025.0,96024.0,1.01946043]
[1739856508330,0.00043258,96025.0,96024.0,1.17567043]
[1739856509310,0.00043258,96025.0,96024.0,1.16867043]
[1739856509441,0.00043258,96025.0,96024.0,1.17567043]
[1739856510064,0.00043258,96025.0,96024.0,1.16867043]
[1739856510236,0.00043258,96025.0,96024.0,1.17567043]
[1739856511058,0.00043258,96025.0,96024.0,1.12297043]
[1739856511260,0.00043258,96025.0,96024.0,1.11597043]
[1739856511514,0.00043258,96025.0,96024.0,1.12997043]
[1739856511918,0.00043258,96025.0,96024.0,0.88987043]
[1739856512114,0.00043258,96025.0,96024.0,0.89687043]
[1739856512901,0.00043258,96025.0,96024.0,0.82792385]
[1739856513300,0.00043258,96025.0,96024.0,0.83492385]
[1739856515734,0.00043258,96025.0,96024.0,0.13991385]
[1739856516170,0.00043258,96025.0,96024.0,0.29612385]
[1739856516545,0.00043258,96025.0,96024.0,0.13991385]
[1739856516673,0.00043258,96025.0,96024.0,0.20418424]
[1739856516906,0.00043258,96025.0,96024.0,0.36739424]
[1739856517569,0.00043258,96025.0,96024.0,0.36039424]
[1739856517789,0.00043258,96025.0,96024.0,0.36739424]
[1739856519831,0.00043258,96025.0,96024.0,0.21118424]
[1739856520039,0.00043258,96025.0,96024.0,0.13991385]
[1739856525965,0.00043258,96025.0,96024.0,0.29612385]
[1739856527767,0.00043258,96025.0,96024.0,0.37902385]
[1739856528693,0.00043258,96025.0,96024.0,0.37202385]
[1739856528891,0.00043258,96025.0,96024.0,0.37902385]
[1739856529068,0.00043258,96025.0,96024.0,0.4815275]
[1739856529283,0.00043258,96025.0,96024.0,0.4745275]
[1739856529683,0.00043258,96025.0,96024.0,0.4815275]
[1739856530102,0.00043258,96025.0,96024.0,0.4745275]
[1739856530517,0.00043258,96025.0,96024.0,0.4815275]
[1739856530650,0.00043258,96025.0,96024.0,0.4745275]
[1739856530851,0.00043258,96025.0,96024.0,0.4815275]
[1739856533130,0.00043258,96025.0,96024.0,0.4745275]
[1739856533268,0.00043258,96025.0,96024.0,0.4815275]
[1739856533918,0.00043258,96025.0,96024.0,0.4675275]
[1739856534138,0.00043258,96025.0,96024.0,0.4815275]
[1739856534540,0.00043258,96025.0,96024.0,0.4745275]
[1739856534743,0.00043258,96025.0,96024.0,0.4815275]
[1739856535896,0.00043258,96025.0,96024.0,0.4745275]
[1739856536256,0.00043258,96025.0,96024.0,0.4815275]
[1739856536801,0.00043258,96025.0,96024.0,0.4745275]
[1739856537306,0.00043258,96025.0,96024.0,0.3986275]
[1739856542867,0.00039258,96025.0,96024.0,0.3986275]
[1739856545714,0.00039258,96025.0,96024.0,0.29612385]
[1739856546532,0.00039258,96025.0,96024.0,0.13991385]
[1739856547219,0.00039258,96025.0,96024.0,0.29612385]
[1739856547979,0.00039258,96025.0,96024.0,0.13991385]
[1739856550254,0.0036432,96034.0,96025.0,0.023]
[1739856550389,0.0036432,96034.0,96026.0,0.10250365]
[1739856552135,0.25299241,96040.0,96027.0,0.208274]
[1739856552320,0.156186,96039.0,96028.0,0.29282644]
[1739856552661,0.0001703,96034.0,96028.0,0.13662244]
[1739856552887,0.0001703,96034.0,96028.0,0.10250365]
[1739856553638,0.0001703,96034.0,96028.0,0.11650365]
[1739856553825,0.0001703,96034.0,96028.0,0.10950365]
[1739856554029,0.0001703,96034.0,96028.0,0.11650365]
[1739856554235,0.0001703,96034.0,96029.0,0.05044069]
[1739856554404,0.0001703,96034.0,96030.0,0.10250365]
[1739856556114,0.0001703,96034.0,96030.0,0.10950365]
[1739856556310,0.0001703,96034.0,96030.0,0.11650365]
[1739856556515,0.0001703,96034.0,96033.0,0.156196]
[1739856556718,0.0001703,96034.0,96033.0,0.29921368]
[1739856557316,0.0001703,96034.0,96033.0,0.32221368]
[1739856557922,0.0001703,96034.0,96033.0,0.32921368]
[1739856558327,0.0001703,96034.0,96033.0,0.33621368]
[1739856567916,0.0001703,96034.0,96033.0,0.66471368]
[1739856569465,0.0001703,96034.0,96033.0,0.65771368]
[1739856569815,0.07842159,96050.0,96045.0,0.156175]
[1739856570191,4.402e-05,96050.0,96046.0,0.10250365]
[1739856570396,4.402e-05,96050.0,96047.0,0.156173]
[1739856570570,4.402e-05,96050.0,96048.0,0.10250365]
[1739856570792,4.402e-05,96050.0,96049.0,0.03107407]
[1739856570993,4.402e-05,96050.0,96049.0,0.13357772]
[1739856572377,4.402e-05,96050.0,96049.0,0.13857772]
[1739856573332,4.402e-05,96050.0,96049.0,0.14357772]
[1739856573764,4.402e-05,96050.0,96049.0,0.11250365]
[1739856582385,4.402e-05,96050.0,96049.0,0.10750365]
[1739856582924,4.402e-05,96050.0,96049.0,0.11250365]
[1739856585522,4.402e-05,96050.0,96049.0,0.10750365]
[1739856585934,4.402e-05,96050.0,96049.0,0.11250365]
[1739856586369,4.402e-05,96050.0,96049.0,0.10750365]
[1739856586556,4.402e-05,96050.0,96049.0,0.11250365]
[1739856588059,4.402e-05,96050.0,96049.0,0.10750365]
[1739856588572,4.402e-05,96050.0,96049.0,0.11250365]
[1739856589726,4.402e-05,96050.0,96049.0,0.10750365]
[1739856590187,4.402e-05,96050.0,96049.0,0.11250365]
[1739856591792,4.402e-05,96050.0,96049.0,0.10784405]
[1739856592013,0.12512547,96056.0,96049.0,0.10784405]
[1739856592184,0.09324289,96113.0,96050.0,0.10250365]
[1739856592399,0.156162,96055.0,96050.0,0.10250365]
[1739856593159,0.156162,96054.0,96050.0,0.10250365]
[1739856593358,0.208205,96059.0,96050.0,0.10350365]
[1739856593574,0.156167,96051.0,96050.0,0.10250365]
[1739856593799,0.208214,96055.0,96050.0,0.10550365]
[1739856593974,0.156163,96053.0,96050.0,0.10550365]
[1739856594170,0.1568872,96060.0,96050.0,0.10250365]
[1739856594370,2.080314,96059.0,96050.0,0.10450365]
[1739856594641,0.156162,96054.0,96050.0,0.10450365]
[1739856594939,0.156162,96054.0,96050.0,0.10550365]
[1739856595278,0.156162,96054.0,96050.0,0.10450365]
[1739856595485,0.156159,96056.0,96050.0,0.10450365]
[1739856596080,0.156159,96056.0,96050.0,0.10550365]
[1739856596290,0.156159,96056.0,96050.0,0.10250365]
[1739856596468,0.156159,96056.0,96051.0,0.02620171]
[1739856596810,0.156159,96056.0,96050.0,0.10550365]
[1739856597016,0.156159,96056.0,96050.0,0.10850365]
[1739856597524,0.220265,96059.0,96050.0,0.10550365]
[1739856597662,0.156157,96057.0,96051.0,0.003]
[1739856598063,0.156159,96056.0,96051.0,0.003]
[1739856598876,0.156159,96056.0,96051.0,0.006]
[1739856599280,0.156159,96056.0,96051.0,0.05032511]
[1739856599488,0.156159,96056.0,96051.0,0.006]
[1739856599699,0.156161,96055.0,96051.0,0.006]
[1739856600103,0.156162,96054.0,96051.0,0.006]
[1739856600298,0.156164,96053.0,96051.0,0.006]
[1739856600499,0.156164,96053.0,96051.0,0.003]
[1739856601523,0.156166,96052.0,96051.0,0.004]
[1739856601726,0.156162,96054.0,96051.0,0.003]
[1739856602344,0.156162,96054.0,96050.0,0.10250365]
[1739856602547,0.156162,96054.0,96051.0,0.004]
[1739856602750,0.15616,96056.0,96052.0,0.01068441]
[1739856603004,0.15616,96055.0,96052.0,0.01068441]
[1739856603243,0.1563302,96055.0,96052.0,0.01068441]
[1739856603481,0.0001702,96055.0,96052.0,0.01068441]
[1739856603886,0.0001702,96055.0,96053.0,0.25866665]
[1739856604086,0.0001702,96055.0,96054.0,0.02766915]
[1739856604207,0.0001302,96055.0,96054.0,0.1301728]
[1739856604409,0.0001302,96055.0,96054.0,0.1787728]
[1739856605553,0.0001302,96055.0,96054.0,0.1827728]
[1739856605768,0.0001302,96055.0,96054.0,0.1867728]
[1739856607398,0.0001302,96055.0,96054.0,0.1827728]
[1739856607809,0.0001302,96055.0,96054.0,0.1897728]
[1739856608209,0.07842159,96064.0,96054.0,0.1897728]
[1739856608544,0.07842159,96064.0,96055.0,0.17177811]
[1739856608753,0.07842159,96064.0,96055.0,0.10250365]
[1739856608951,0.07842159,96064.0,96062.0,0.156148]
[1739856609162,0.06814908,96086.0,96062.0,0.10250365]
[1739856609163,0.07842159,96072.0,96062.0,0.10250365]
[1739856609366,0.07842159,96072.0,96054.0,0.09981489]
[1739856609367,0.100642,96071.0,96065.0,0.156142]
[1739856609572,0.100642,96071.0,96066.0,0.13066822]
[1739856609573,0.156138,96069.0,96066.0,0.13066822]
[1739856609775,0.167366,96068.0,96066.0,0.13066822]
[1739856609992,0.309518,96070.0,96069.0,0.156137]
[1739856610197,0.07876219,96076.0,96069.0,0.25864065]
[1739856610198,0.01190362,96071.0,96069.0,0.25864065]
[1739856610433,0.01190362,96071.0,96070.0,0.15733652]
[1739856610638,0.0003406,96076.0,96070.0,0.15733652]
[1739856611067,0.01244781,96076.0,96071.0,0.156134]
[1739856611272,0.01244781,96076.0,96072.0,0.10250365]
[1739856611482,0.0003406,96076.0,96073.0,0.06031585]
[1739856611705,0.0003406,96076.0,96074.0,0.10250365]
[1739856612857,0.0003406,96076.0,96074.0,0.25963165]
[1739856614165,0.0003406,96076.0,96075.0,0.023]
[1739856614369,0.0003406,96076.0,96075.0,0.2856936]
[1739856614996,0.0003406,96076.0,96075.0,0.3317936]
[1739856615198,0.0003406,96076.0,96075.0,0.6602936]
[1739856615601,0.0003406,96076.0,96075.0,0.6642936]
[1739856615781,0.0003406,96076.0,96075.0,0.6602936]
[1739856616189,0.0003406,96076.0,96075.0,0.6642936]
[1739856616372,0.0003406,96076.0,96075.0,0.8142936]
[1739856616956,0.0003406,96076.0,96075.0,0.8182936]
[1739856617355,0.0003406,96076.0,96075.0,0.8142936]
[1739856617520,0.0003406,96076.0,96075.0,0.8102936]
[1739856617721,0.0003406,96076.0,96075.0,0.8232936]
[1739856617956,0.0003406,96076.0,96075.0,0.8172936]
[1739856618603,0.0003406,96076.0,96075.0,0.8242936]
[1739856619393,0.0003406,96076.0,96075.0,0.57080365]
[1739856619609,0.0003406,96076.0,96075.0,0.11650365]
[1739856619970,0.1564666,96076.0,96075.0,0.014]
[1739856620372,0.1564666,96076.0,96075.0,0.007]
[1739856620577,0.15613,96074.0,96062.0,0.156148]
[1739856620783,0.07842159,96072.0,96063.0,0.15212895]
[1739856621035,0.07842159,96072.0,96065.0,0.156143]
[1739856621304,0.07842159,96072.0,96066.0,0.10250365]
[1739856621511,0.15613,96074.0,96066.0,0.10250365]
[1739856621687,0.156133,96072.0,96066.0,0.15415095]
[1739856621895,0.15613,96074.0,96066.0,0.15415095]
[1739856622116,0.156131,96073.0,96066.0,0.15415095]
[1739856622562,0.20817,96075.0,96066.0,0.10250365]
[1739856622887,0.15613,96074.0,96066.0,0.10250365]
[1739856623159,0.20817,96075.0,96066.0,0.10250365]
[1739856623361,0.156133,96072.0,96066.0,0.10250365]
[1739856623572,0.20817,96075.0,96066.0,0.10250365]
[1739856623711,0.15613,96074.0,96066.0,0.10250365]
[1739856623917,0.20817,96075.0,96066.0,0.10950365]
[1739856624119,0.156134,96071.0,96066.0,0.13703145]
[1739856624316,0.11974578,96076.0,96066.0,0.10250365]
[1739856624522,0.156141,96067.0,96066.0,0.003]
[1739856624730,0.156141,96067.0,96066.0,0.006]
[1739856625349,0.156141,96067.0,96066.0,0.003]
[1739856625350,0.932262,96067.0,96066.0,0.003]
[1739856625551,0.932262,96067.0,96066.0,0.005]
[1739856625753,0.932262,96067.0,96066.0,0.002]
[1739856626466,0.232141,96067.0,96066.0,0.002]
[1739856626602,2.73741065,96067.0,96066.0,0.002]
[1739856626812,2.58965865,96067.0,96066.0,0.002]
[1739856627012,0.156144,96065.0,96064.0,0.0003404]
[1739856627212,2.162478,96065.0,96064.0,0.0003404]
[1739856627521,2.169773,96065.0,96064.0,0.0003404]
[1739856628692,2.169773,96065.0,96064.0,0.0043404]
[1739856628926,2.169773,96065.0,96064.0,0.0053404]
[1739856630108,2.169773,96065.0,96064.0,0.0093404]
[1739856630973,2.218773,96065.0,96064.0,0.0093404]
[1739856631148,2.32127665,96065.0,96064.0,0.0093404]
[1739856631584,2.47127665,96065.0,96064.0,0.0093404]
[1739856631789,2.47127665,96065.0,96064.0,0.0043404]
[1739856631990,2.47127665,96065.0,96064.0,0.0003404]
[1739856632192,2.47127665,96065.0,96064.0,0.0013404]
[1739856633225,2.47127665,96065.0,96064.0,0.0023404]
[1739856633453,2.47127665,96065.0,96064.0,0.0013404]
[1739856633454,2.368773,96065.0,96064.0,0.0013404]
[1739856633672,2.368533,96065.0,96064.0,0.0013404]
[1739856633837,2.369533,96065.0,96064.0,0.0013404]
[1739856634051,2.369533,96065.0,96064.0,0.0003404]
[1739856634289,2.47203665,96065.0,96064.0,0.0003404]
[1739856635816,0.15,96064.0,96051.0,0.0003404]
[1739856636014,0.306165,96052.0,96051.0,0.0003404]
[1739856636228,3.683276,96052.0,96051.0,0.0003404]
[1739856636475,3.305748,96052.0,96051.0,0.0003404]
[1739856636646,3.186869,96052.0,96051.0,0.0003404]
[1739856636858,2.270527,96052.0,96051.0,0.0003404]
[1739856637061,0.306165,96052.0,96051.0,0.0003404]
[1739856637191,3.333392,96052.0,96051.0,0.0003404]
[1739856637393,3.211909,96052.0,96051.0,0.0003404]
[1739856637808,3.211909,96052.0,96051.0,0.0013404]
[1739856638277,3.211909,96052.0,96051.0,0.0023404]
[1739856639472,3.211909,96052.0,96051.0,0.0013404]
[1739856639473,3.31441265,96052.0,96051.0,0.0013404]
[1739856639822,3.39471265,96052.0,96051.0,0.0013404]
[1739856640017,3.41102498,96052.0,96051.0,0.0013404]
[1739856640464,3.41102498,96052.0,96051.0,0.0003404]
[1739856642965,3.39471265,96052.0,96051.0,0.0003404]
[1739856643409,3.39571265,96052.0,96051.0,0.0003404]
[1739856643823,3.39471265,96052.0,96051.0,0.0003404]
[1739856644036,3.39571265,96052.0,96051.0,0.0003404]
[1739856646347,3.41202664,96052.0,96051.0,0.0003404]
[1739856647517,2.49568464,96052.0,96051.0,0.0003404]
[1739856647933,0.50628264,96052.0,96051.0,0.0003404]
[1739856648148,4.21857464,96052.0,96051.0,0.0003404]
[1739856648692,3.81737464,96052.0,96051.0,0.0003404]
[1739856652562,3.80106065,96052.0,96051.0,0.0003404]
[1739856653447,3.71770565,96052.0,96051.0,0.0003404]
[1739856653856,3.63425365,96052.0,96051.0,0.0003404]
[1739856655830,0.306168,96050.0,96049.0,4e-07]
[1739856655971,0.306168,96050.0,96049.0,4.442e-05]
[1739856655972,0.45637165,96050.0,96049.0,4.442e-05]
[1739856657001,0.47268681,96050.0,96049.0,4.442e-05]
[1739856657198,0.47568681,96050.0,96049.0,4.442e-05]
[1739856657527,0.57819046,96050.0,96049.0,4.442e-05]
[1739856658496,4.34148046,96050.0,96049.0,4.442e-05]
[1739856658714,4.26023846,96050.0,96049.0,4.442e-05]
[1739856660216,4.19992346,96050.0,96049.0,4.442e-05]
[1739856660422,4.03520946,96050.0,96049.0,4.442e-05]
[1739856661963,3.87996481,96050.0,96049.0,4.442e-05]
[1739856662521,3.86364965,96050.0,96049.0,4.442e-05]
[1739856663231,3.87139866,96050.0,96049.0,4.442e-05]
[1739856663573,3.86364965,96050.0,96049.0,4.442e-05]
[1739856663983,3.84827265,96050.0,96049.0,4.442e-05]
[1739856664368,3.698069,96050.0,96049.0,4.442e-05]
[1739856664540,2.31555944,96050.0,96049.0,4.442e-05]
[1739856664696,2.29134444,96050.0,96049.0,4.442e-05]
[1739856664900,2.39384809,96050.0,96049.0,4.442e-05]
[1739856665302,2.38609865,96050.0,96049.0,4.442e-05]
[1739856665518,2.38509865,96050.0,96049.0,4.442e-05]
[1739856665830,2.40041252,96050.0,96049.0,4.442e-05]
[1739856666029,2.40916363,96050.0,96049.0,4.442e-05]
[1739856666433,2.41016363,96050.0,96049.0,4.442e-05]
[1739856666597,2.40816363,96050.0,96049.0,4.442e-05]
[1739856666842,2.40916363,96050.0,96049.0,4.442e-05]
[1739856667511,2.51166728,96050.0,96049.0,4.442e-05]
[1739856667713,0.15,96049.0,96025.0,0.04631895]
[1739856667916,0.156207,96026.0,96025.0,0.04636297]
[1739856668112,2.022054,96026.0,96025.0,0.04636297]
[1739856668328,2.051803,96026.0,96025.0,0.04636297]
[1739856668912,0.521762,96026.0,96025.0,0.04636297]
[1739856669267,0.156205,96028.0,96025.0,4.402e-05]
[1739856669563,0.161833,96027.0,96025.0,0.00704402]
[1739856669739,0.156206,96027.0,96025.0,0.00704402]
[1739856669938,0.01489355,96027.0,96025.0,0.00704402]
[1739856670149,0.156197,96032.0,96026.0,0.08317348]
[1739856670350,0.360349,96031.0,96026.0,0.08317348]
[1739856670559,0.291041,96030.0,96026.0,0.08317348]
[1739856670876,0.279042,96029.0,96027.0,0.1289]
[1739856671202,0.17159481,96029.0,96028.0,0.0807]
[1739856671632,0.29443481,96029.0,96028.0,0.0807]
[1739856671885,0.13823281,96029.0,96028.0,0.0807]
[1739856672101,0.15687908,96040.0,96030.0,0.0807]
[1739856672304,0.156191,96036.0,96033.0,0.0807]
[1739856672508,0.17225683,96040.0,96033.0,0.0807]
[1739856672686,0.156191,96036.0,96033.0,0.0807]
[1739856672891,0.15619,96037.0,96033.0,0.0807]
[1739856673089,0.156193,96035.0,96033.0,0.0807]
[1739856673301,0.543866,96034.0,96033.0,0.0807]
[1739856674690,0.810792,96034.0,96033.0,0.0807]
[1739856674867,0.810792,96034.0,96033.0,0.0847]
[1739856675166,0.810792,96034.0,96033.0,0.008]
[1739856675382,0.810792,96034.0,96033.0,0.004]
[1739856675773,0.91329565,96034.0,96033.0,0.004]
[1739856675975,0.156202,96029.0,96028.0,0.0003406]
[1739856676150,3.245377,96029.0,96028.0,0.0003406]
[1739856676383,3.981053,96029.0,96028.0,0.0003406]
[1739856676584,4.01021793,96029.0,96028.0,0.0003406]
[1739856676967,3.92329193,96029.0,96028.0,0.0003406]
[1739856678103,3.92329193,96029.0,96028.0,0.0023406]
[1739856678540,3.94345417,96029.0,96028.0,0.0003406]
[1739856678735,3.94345417,96029.0,96028.0,0.00019615]
[1739856678959,3.87315482,96029.0,96028.0,0.00019615]
[1739856679112,3.83325891,96029.0,96028.0,0.00519615]
[1739856679463,3.60444991,96029.0,96028.0,0.00119615]
[1739856679695,0.15,96028.0,96025.0,1e-08]
[1739856679898,0.15,96025.0,95995.0,0.01069682]
[1739856680105,0.208327,96003.0,96001.0,4.403e-05]
[1739856680303,1.430858,96002.0,96001.0,4.403e-05]
[1739856680507,1.576131,96002.0,96001.0,4.403e-05]
[1739856680714,0.445412,96002.0,96001.0,4.403e-05]
[1739856681090,0.409056,96002.0,96001.0,4.403e-05]
[1739856681809,0.409056,96002.0,96001.0,0.00704403]
[1739856682073,0.41681071,96002.0,96001.0,0.00704403]
[1739856682449,0.16400071,96002.0,96001.0,0.00704403]
[1739856682866,0.16400071,96002.0,96001.0,0.01404403]
[1739856683321,0.99190371,96002.0,96001.0,0.01404403]
[1739856684110,1.09440736,96002.0,96001.0,0.01404403]
[1739856684338,0.26650436,96002.0,96001.0,0.01404403]
[1739856684491,2.72159036,96002.0,96001.0,0.01404403]
[1739856684692,2.56206936,96002.0,96001.0,0.01404403]
[1739856685110,2.48140836,96002.0,96001.0,0.01404403]
[1739856685875,2.48140836,96002.0,96001.0,0.00704403]
[1739856686310,2.48140836,96002.0,96001.0,0.01421433]
[1739856686983,2.48140836,96002.0,96001.0,0.00721433]
[1739856687387,2.37890471,96002.0,96001.0,0.01421433]
[1739856688366,2.37890471,96002.0,96001.0,0.00721433]
[1739856688574,2.37890471,96002.0,96001.0,0.00021433]
[1739856689013,2.37890471,96002.0,96001.0,0.00421433]
[1739856689206,2.37890471,96002.0,96001.0,0.00021433]
[1739856689727,2.37890471,96002.0,96001.0,0.00121433]